fUSD/lending_fUSD_20251113
["ID","MTS","AMOUNT","RATE_DAILY","PERIOD"]
[393881786,1763068240276,-500.0,0.00017973,2]
[393881787,1763068240285,-500.0,0.00017973,2]
[393881788,1763068240295,-500.0,0.00017973,2]
[393881789,1763068240304,-500.0,0.00017973,2]
[393881790,1763068240313,-500.0,0.00017973,2]
[393881791,1763068240323,-278.41536593,0.00017973,2]
[393881792,1763068240333,-500.0,0.00017973,2]
[393881793,1763068240342,-500.0,0.00017973,2]
[393881794,1763068240351,-1457.1520932,0.00017977,2]
[393881795,1763068240361,-1321.55,0.0001799,2]
[393881796,1763068240370,-198.0,0.00017995,2]
[393881797,1763068240379,-192695.17693575,0.00018,2]
[393881798,1763068240389,-155005.6749311,0.00018,2]
[393881799,1763068240398,-46186.17704137,0.00018,2]
[393881800,1763068240417,-5184.348,0.00018,2]
[393881801,1763068240429,-2709.13045953,0.00018,2]
[393881802,1763068240439,-2005.5882616,0.00018,2]
[393881803,1763068240449,-179.70242,0.00018,2]
[393881804,1763068240459,-179.70243,0.00018,2]
[393881805,1763068240470,-358.2680698,0.00018009,2]
[393881806,1763068240480,-168.0,0.00018026,2]
[393881807,1763068240490,-168.0,0.00018032,2]
[393881808,1763068240499,-179.70243,0.0001804,2]
[393881809,1763068240508,-505.0,0.00018049,2]
[393881810,1763068240517,-1000.0,0.00018082,2]
[393881811,1763068240527,-500.0,0.00018082,2]
[393881812,1763068240536,-166.66,0.00018126,2]
[393881813,1763068240545,-5888.0,0.00018155,2]
[393881814,1763068240555,-515.11610184,0.00018158,2]
[393881815,1763068240564,-168.0,0.0001816,2]
[393881816,1763068240574,-179.70243,0.0001816,2]
[393881817,1763068240584,-1500.0,0.00018168,2]
[393881818,1763068240593,-775.71917653,0.0001817,2]
[393881819,1763068240606,-159.28082347,0.0001817,2]
[393881820,1763068240615,-486.91177415,0.000182,2]
[393881821,1763068240627,-513.08822585,0.000182,2]
[393881822,1763068240636,-168.0,0.00018222,2]
[393881823,1763068240646,-198.0,0.00018222,2]
[393881824,1763068240655,-5888.0,0.00018275,2]
[393881825,1763068240664,-198.0,0.00018276,2]
[393881826,1763068240674,-179.70242,0.0001829,2]
[393881827,1763068240684,-3838.80935415,0.00018293,2]
[393881828,1763068240697,-1557.19064585,0.00018293,2]
[393881829,1763068240706,-198.0,0.00018317,2]
[393881830,1763068240715,-295.87,0.00018319,2]
[393881831,1763068240724,-1316.46,0.00018356,2]
[393881832,1763068240734,-2608.32754195,0.00018412,2]
[393881833,1763068240753,-2136.47547211,0.00018412,2]
[393881834,1763068240765,-311.98467859,0.00018412,2]
[393881835,1763068240778,-831.21230735,0.00018412,2]
[393881836,1763068240787,-152.69029385,0.00018483,2]
[393881837,1763068240816,-45.30970615,0.00018483,2]
[393881838,1763068240825,-2078.57856185,0.000185,2]
[393881839,1763068240836,-322.46058965,0.00018521,2]
[393881840,1763068240846,-418.62282168,0.00018521,2]
[393881841,1763068240858,-1000.0,0.00018521,2]
[393881842,1763068240868,-1006.65983477,0.00018521,2]
[393881843,1763068240877,-280.92767857,0.00018521,2]
[393881844,1763068240887,-1000.0,0.00018521,2]
[393881845,1763068240897,-824.04214263,0.00018521,2]
[393881846,1763068240906,-198.0,0.00018567,2]
[393881847,1763068240915,-5679.0,0.000186,2]
[393881848,1763068240925,-1751.0,0.000186,2]
[393881849,1763068240935,-420.0,0.00018611,2]
[393881850,1763068240945,-420.0,0.00018611,2]
[393881851,1763068240955,-1680.0,0.00018667,2]
[393881852,1763068240965,-166.66,0.00018688,2]
[393881853,1763068240974,-307.20857083,0.00018704,2]
[393881854,1763068240983,-250.0,0.00018704,2]
[393881855,1763068240994,-2500.0,0.00018704,2]
[393881856,1763068241003,-300.0,0.00018704,2]
[393881857,1763068241013,-384.26315348,0.00018704,2]
[393881858,1763068241022,-436.74727337,0.00018704,4]
[393881859,1763068241032,-300.0,0.00018704,2]
[393881860,1763068241041,-195.0,0.00018704,2]
[393881861,1763068241050,-2500.0,0.00018704,2]
[393881862,1763068241059,-300.0,0.00018704,2]
[393881863,1763068241069,-195.0,0.00018704,2]
[393881864,1763068241079,-193.0,0.00018704,2]
[393881865,1763068241088,-334.97782505,0.00018716,2]
[393881866,1763068241098,-250.0,0.00018721,2]
[393881867,1763068241107,-300.0,0.00018721,2]
[393881868,1763068241116,-504.0,0.0001874,2]
[393881869,1763068241126,-1765.80033356,0.00018758,2]
[393881870,1763068241135,-641.9508056,0.00018758,2]
[393881871,1763068241145,-1000.0,0.0001876,2]
[393881872,1763068241154,-198.0,0.00018835,2]
[393881873,1763068241164,-312.29549531,0.00018847,2]
[393881874,1763068241173,-198.0,0.00018857,2]
[393881875,1763068241183,-1000.0,0.00018878,2]
[393881876,1763068241192,-5396.0,0.00018922,2]
[393881877,1763068241202,-15200.4201034,0.00018937,2]
[393881878,1763068241212,-5396.0,0.00018991,2]
[393881879,1763068241221,-5707.52150294,0.00019,2]
[393881880,1763068241231,-217.00864735,0.00019,2]
[393881881,1763068241240,-291.73943655,0.00019,2]
[393881882,1763068241249,-21214.32365072,0.00019,2]
[393881883,1763068241258,-500.0,0.00019009,2]
[393881884,1763068241268,-5888.0,0.00019036,2]
[393881885,1763068241279,-456.49291772,0.00019068,2]
[393881886,1763068241289,-1500.0,0.00019068,2]
[393881887,1763068241298,-179.09377202,0.00019076,2]
[393881888,1763068241308,-295.87,0.00019235,2]
[393881889,1763068241317,-575.0,0.00019247,2]
[393881890,1763068241331,-1317.0,0.00019247,2]
[393881891,1763068241341,-166.66,0.00019249,2]
[393881892,1763068241350,-300.0,0.0001926,2]
[393881893,1763068241360,-1598.0,0.00019274,2]
[393881894,1763068241369,-834.0,0.00019274,2]
[393881895,1763068241379,-813.0,0.00019274,2]
[393881896,1763068241388,-1275.0,0.00019274,2]
[393881897,1763068241397,-906.0,0.00019274,2]
[393881898,1763068241407,-1190.0,0.00019274,2]
[393881899,1763068241415,-2144.0,0.00019279,2]
[393881900,1763068241424,-6668.0,0.00019279,2]
[393881901,1763068241434,-560.0,0.00019279,2]
[393881902,1763068241443,-6484.0,0.00019279,2]
[393881903,1763068241452,-742.0,0.000193,2]
[393881904,1763068241462,-150.0,0.00019347,2]
[393881905,1763068241471,-209.0,0.00019347,2]
[393881906,1763068241480,-295.499,0.00019347,2]
[393881907,1763068241489,-288.139,0.00019347,2]
[393881908,1763068241498,-150.299,0.00019347,2]
[393881909,1763068241507,-250.0,0.00019347,2]
[393881910,1763068241517,-283.616,0.00019347,2]
[393881911,1763068241526,-150.696,0.00019347,2]
[393881912,1763068241535,-608.0,0.00019347,2]
[393881913,1763068241545,-160.071,0.00019347,2]
[393881914,1763068241554,-1589.0,0.00019348,2]
[393881915,1763068241564,-3391.672172,0.00019413,2]
[393881916,1763068241574,-2000.0,0.00019432,2]
[393881917,1763068241688,-1000.0,0.00019438,2]
[393881918,1763068241699,-5888.0,0.00019511,2]
[393881919,1763068241708,-1000.0,0.00019557,2]
[393881920,1763068241718,-1221.98217018,0.00019616,2]
[393881921,1763068241727,-10048.81,0.00019726,2]
[393881922,1763068241737,-218.56918897,0.00019745,2]
[393881923,1763068241746,-166.66,0.0001981,2]
[393881924,1763068241755,-178.03,0.00019824,2]
[393881925,1763068241766,-4878.50497413,0.000199,3]
[393881926,1763068241775,-800.0,0.000199,7]
[393881927,1763068241784,-150.0,0.00019939,5]
[393881928,1763068241794,-218.56918897,0.00019967,2]
[393881929,1763068241805,-150.21,0.0001999,2]
[393881930,1763068241825,-150.21,0.0001999,2]
[393881931,1763068241844,-158402.4714784,0.0002,5]
[393881932,1763068241853,-486.84630446,0.0002,5]
[393881933,1763068241862,-184.66,0.0002,2]
[393881934,1763068241872,-5000.0,0.0002,2]
[393881935,1763068241882,-344.39207861,0.00020105,2]
[393881936,1763068241891,-1000.0,0.00020116,2]
[393881937,1763068241901,-295.87,0.00020151,2]
[393881938,1763068241911,-753.91,0.00020187,2]
[393881939,1763068241921,-218.56918897,0.00020189,2]
[393881940,1763068241930,-179.09377202,0.00020251,2]
[393881941,1763068241940,-500.0,0.00020273,2]
[393881942,1763068241949,-544.95382699,0.00020273,2]
[393881943,1763068241958,-500.0,0.00020273,2]
[393881944,1763068241967,-482.77598454,0.00020273,2]
[393881945,1763068241976,-500.0,0.00020273,2]
[393881946,1763068241985,-506.67445187,0.00020273,2]
[393881947,1763068241995,-503.61158454,0.00020273,2]
[393881948,1763068242004,-500.0,0.00020273,2]
[393881949,1763068242014,-200.0,0.00020273,2]
[393881950,1763068242023,-150.21,0.00020281,2]
[393881951,1763068242032,-155005.6749311,0.00020291,2]
[393881952,1763068242043,-587.0,0.00020326,2]
[393881953,1763068242053,-587.0,0.00020326,2]
[393881954,1763068242064,-202.425479,0.000204,2]
[393881955,1763068242074,-218.56918897,0.00020411,2]
[393881956,1763068242085,-150.0,0.00020432,2]
[393881957,1763068242094,-1108.01014641,0.00020432,2]
[393881958,1763068242104,-150.0,0.00020432,2]
[393881959,1763068242113,-19899.73716644,0.00020432,2]
[393881960,1763068242123,-150.0,0.00020432,2]
[393881961,1763068242132,-2477.76206642,0.00020432,2]
[393881962,1763068242141,-2351.0,0.00020489,2]
[393881963,1763068242150,-478.69779641,0.00020511,2]
[393881964,1763068242160,-1765.80033356,0.00020543,2]
[393881965,1763068242169,-641.9508056,0.00020543,2]
[393881966,1763068242178,-21331.78,0.00020548,2]
[393881967,1763068242188,-2013.0,0.0002061,2]
[393881968,1763068242197,-218.78775816,0.00020633,2]
[393881969,1763068242206,-1000.0,0.00020795,2]
[393881970,1763068242215,-500.0,0.00020821,2]
[393881971,1763068242224,-1000.0,0.00020821,2]
[393881972,1763068242233,-500.0,0.00020821,2]
[393881973,1763068242242,-400.0,0.00020958,2]
[393881974,1763068242251,-1000.0,0.00020976,2]
[393881975,1763068242261,-699.71,0.00020997,2]
[393881976,1763068242274,-9374.57069516,0.00021,2]
[393881977,1763068242284,-1909.0,0.00021,2]
[393881978,1763068242295,-295.87,0.00021067,2]
[393881979,1763068242304,-500.0,0.00021368,2]
[393881980,1763068242313,-12066.8021926,0.00021435,2]
[393881981,1763068242323,-150.21,0.0002149,2]
[393881982,1763068242332,-18088.29698793,0.000215,2]
[393881983,1763068242341,-336.52,0.00021552,2]
[393881984,1763068242350,-209.66167998,0.00021642,2]
[393881985,1763068242359,-5000.0,0.00021918,2]
[393881986,1763068242368,-295.87,0.00021983,2]
[393881987,1763068242377,-172.09,0.00022,2]
[393881988,1763068242386,-48906.85265041,0.00022,4]
[393881989,1763068242396,-156.43,0.00022,2]
[393881990,1763068242405,-2078.57856181,0.00022067,2]
[393881991,1763068242416,-477.77,0.00022144,2]
[393881992,1763068242427,-477.93,0.00022147,2]
[393881993,1763068242436,-600.24,0.00022147,2]
[393881994,1763068242446,-823.0,0.000222,2]
[393881995,1763068242455,-823.0,0.000222,2]
[393881996,1763068242464,-2692.4675057,0.00022202,2]
[393881997,1763068242474,-575.0,0.00022247,2]
[393881998,1763068242485,-1317.0,0.00022247,2]
[393882000,1763068242496,-1598.0,0.00022274,2]
[393882001,1763068242507,-821.0,0.00022274,2]
[393882002,1763068242516,-813.0,0.00022274,2]
[393882003,1763068242525,-1275.0,0.00022274,2]
[393882004,1763068242535,-906.0,0.00022274,2]
[393882005,1763068242544,-1190.0,0.00022274,2]
[393882006,1763068242555,-2144.0,0.00022279,2]
[393882007,1763068242565,-6668.0,0.00022279,2]
[393882008,1763068242575,-560.0,0.00022279,2]
[393882009,1763068242585,-6484.0,0.00022279,2]
[393882011,1763068242595,-1751.0,0.000223,2]
[393882013,1763068242605,-224.33878844,0.00022324,2]
[393882014,1763068242616,-1765.80033356,0.00022327,2]
[393882015,1763068242626,-896.15879611,0.00022346,10]
[393882016,1763068242636,-150.0,0.00022347,2]
[393882017,1763068242645,-150.0,0.00022347,2]
[393882018,1763068242654,-150.0,0.00022347,2]
[393882019,1763068242664,-150.0,0.00022347,2]
[393882020,1763068242673,-608.0,0.00022347,2]
[393882021,1763068242683,-3292.0,0.0002249,2]
[393882022,1763068242692,-877.27,0.00022562,2]
[393882023,1763068242701,-4074.87,0.00022562,2]
[393882024,1763068242710,-150.21,0.00022572,2]
[393882025,1763068242719,-155005.6749311,0.00022582,2]
[393882026,1763068242728,-295.87,0.00022899,2]
[393882027,1763068242737,-1200.0,0.000229,8]
[393882028,1763068242746,-1000.0,0.00023074,2]
[393882029,1763068242757,-699.71,0.00023103,2]
[393882030,1763068242766,-699.71,0.00023104,2]
[393882031,1763068242777,-295.87,0.00023814,2]
[393882032,1763068242786,-1000.0,0.00024,24]
[393882033,1763068242796,-1311.53,0.00024097,2]
[393882034,1763068242809,-699.71,0.00024097,2]
[393882035,1763068242818,-699.71,0.00024097,2]
[393882036,1763068242827,-150.21,0.00024102,2]
[393882037,1763068242840,-1765.80033356,0.00024112,2]
[393882038,1763068242851,-955.86,0.00024137,2]
[393882039,1763068242860,-955.86,0.00024137,2]
[393882040,1763068242870,-2640.37,0.00024225,2]
[393882041,1763068242879,-1152.0,0.00024246,2]
[393882042,1763068242890,-1152.0,0.00024246,2]
[393882043,1763068242899,-156.43,0.00024358,2]
[393882044,1763068242909,-336.52,0.00024364,2]
[393882045,1763068242918,-153.0,0.00024658,2]
[393882046,1763068242934,-153.0,0.00024658,2]
[393882047,1763068242950,-153.0,0.00024658,2]
[393882048,1763068242959,-153.0,0.00024658,2]
[393882049,1763068242968,-153.0,0.00024658,2]
[393882050,1763068242977,-153.0,0.00024658,2]
[393882051,1763068242987,-153.0,0.00024658,2]
[393882052,1763068242997,-153.0,0.00024658,2]
[393882053,1763068243006,-153.0,0.00024658,2]
[393882054,1763068243015,-153.0,0.00024658,2]
[393882055,1763068243025,-153.0,0.00024658,2]
[393882056,1763068243034,-153.0,0.00024658,2]
[393882057,1763068243043,-153.0,0.00024658,2]
[393882058,1763068243052,-153.0,0.00024658,2]
[393882059,1763068243061,-153.0,0.00024658,2]
[393882060,1763068243070,-153.0,0.00024658,2]
[393882061,1763068243080,-153.0,0.00024658,2]
[393882062,1763068243089,-153.0,0.00024658,2]
[393882063,1763068243098,-153.0,0.00024658,2]
[393882064,1763068243107,-153.0,0.00024658,2]
[393882065,1763068243116,-153.0,0.00024658,2]
[393882066,1763068243125,-153.0,0.00024658,2]
[393882067,1763068243134,-153.0,0.00024658,2]
[393882068,1763068243143,-153.0,0.00024658,2]
[393882069,1763068243152,-153.0,0.00024658,2]
[393882070,1763068243161,-153.0,0.00024658,2]
[393882071,1763068243170,-153.0,0.00024658,2]
[393882072,1763068243280,-153.0,0.00024658,2]
[393882073,1763068243289,-153.0,0.00024658,2]
[393882074,1763068243300,-153.0,0.00024658,2]
[393882075,1763068243310,-153.0,0.00024658,2]
[393882076,1763068243320,-153.0,0.00024658,2]
[393882077,1763068243330,-153.0,0.00024658,2]
[393882078,1763068243339,-153.0,0.00024658,2]
[393882079,1763068243348,-153.0,0.00024658,2]
[393882080,1763068243357,-153.0,0.00024658,2]
[393882081,1763068243366,-153.0,0.00024658,2]
[393882082,1763068243375,-153.0,0.00024658,2]
[393882083,1763068243383,-153.0,0.00024658,2]
[393882084,1763068243392,-153.0,0.00024658,2]
[393882085,1763068243401,-153.0,0.00024658,2]
[393882086,1763068243410,-153.0,0.00024658,2]
[393882087,1763068243420,-153.0,0.00024658,2]
[393882088,1763068243429,-153.0,0.00024658,2]
[393882089,1763068243439,-153.0,0.00024658,2]
[393882090,1763068243448,-153.0,0.00024658,2]
[393882091,1763068243458,-153.0,0.00024658,2]
[393882092,1763068243469,-153.0,0.00024658,2]
[393882093,1763068243479,-153.0,0.00024658,2]
[393882094,1763068243488,-153.0,0.00024658,2]
[393882095,1763068243498,-153.0,0.00024658,2]
[393882096,1763068243508,-153.0,0.00024658,2]
[393882097,1763068243517,-153.0,0.00024658,2]
[393882098,1763068243527,-153.0,0.00024658,2]
[393882099,1763068243538,-153.0,0.00024658,2]
[393882100,1763068243547,-153.0,0.00024658,2]
[393882101,1763068243557,-153.0,0.00024658,2]
[393882102,1763068243570,-153.0,0.00024658,2]
[393882103,1763068243579,-153.0,0.00024658,2]
[393882104,1763068243590,-153.0,0.00024658,2]
[393882105,1763068243599,-153.0,0.00024658,2]
[393882106,1763068243609,-153.0,0.00024658,2]
[393882107,1763068243619,-153.0,0.00024658,2]
[393882108,1763068243628,-153.0,0.00024658,2]
[393882109,1763068243637,-153.0,0.00024658,2]
[393882110,1763068243646,-153.0,0.00024658,2]
[393882111,1763068243655,-153.0,0.00024658,2]
[393882113,1763068243665,-153.0,0.00024658,2]
[393882115,1763068243674,-153.0,0.00024658,2]
[393882116,1763068243684,-153.0,0.00024658,2]
[393882117,1763068243694,-153.0,0.00024658,2]
[393882118,1763068243704,-153.0,0.00024658,2]
[393882119,1763068243715,-153.0,0.00024658,2]
[393882120,1763068243724,-153.0,0.00024658,2]
[393882121,1763068243734,-153.0,0.00024658,2]
[393882122,1763068243745,-153.0,0.00024658,2]
[393882123,1763068243755,-153.0,0.00024658,2]
[393882124,1763068243764,-153.0,0.00024658,2]
[393882125,1763068243774,-153.0,0.00024658,2]
[393882126,1763068243784,-153.0,0.00024658,2]
[393882127,1763068243793,-153.0,0.00024658,2]
[393882128,1763068243804,-153.0,0.00024658,2]
[393882129,1763068243816,-153.0,0.00024658,2]
[393882130,1763068243825,-153.0,0.00024658,2]
[393882131,1763068243835,-153.0,0.00024658,2]
[393882132,1763068243845,-153.0,0.00024658,2]
[393882133,1763068243855,-153.0,0.00024658,2]
[393882134,1763068243864,-153.0,0.00024658,2]
[393882135,1763068243874,-153.0,0.00024658,2]
[393882136,1763068243886,-153.0,0.00024658,2]
[393882137,1763068243897,-153.0,0.00024658,2]
[393882138,1763068243907,-153.0,0.00024658,2]
[393882139,1763068243917,-153.0,0.00024658,2]
[393882140,1763068243927,-153.0,0.00024658,2]
[393882141,1763068243936,-153.0,0.00024658,2]
[393882142,1763068243945,-153.0,0.00024658,2]
[393882143,1763068243956,-153.0,0.00024658,2]
[393882144,1763068243966,-153.0,0.00024658,2]
[393882145,1763068243975,-153.0,0.00024658,2]
[393882146,1763068243984,-1000.0,0.00024658,2]
[393882147,1763068244008,-1241.08,0.00024658,30]
[393882148,1763068244024,-525.94,0.00024658,2]
[393882149,1763068244048,-4609.0,0.00024686,2]
[393882150,1763068244064,-1909.86362387,0.000247,2]
[393882151,1763068244080,-295.87,0.0002473,2]
[393882152,1763068244099,-150.21,0.0002479,2]
[393882153,1763068244118,-150.21,0.0002479,2]
[393882154,1763068244136,-150.21,0.0002479,2]
[393882155,1763068244154,-150.21,0.0002479,2]
[393882156,1763068244173,-478.69779641,0.000248,3]
[393882157,1763068244188,-494249.936623,0.000248,3]
[393882158,1763068244203,-150.21,0.00024864,2]
[393882159,1763068244220,-155005.6749311,0.00024874,2]
[393882160,1763068244235,-2184.19,0.000249,7]
[393882161,1763068244252,-1600.0,0.000249,9]
[393882162,1763068244265,-134419.822282,0.000249,3]
[393882163,1763068244279,-1051.35685065,0.00025,3]
[393882164,1763068244294,-3009.96937623,0.00025,2]
[393882165,1763068244308,-7056.14086591,0.00025,2]
[393882166,1763068244326,-1052.29935555,0.00025,2]
[393882167,1763068244341,-165.39284822,0.00025,2]
[393882168,1763068244355,-5912.36497431,0.00025,2]
[393882169,1763068244370,-2526.85529256,0.00025,30]
[393882170,1763068244384,-701.07540138,0.00025,21]
[393882171,1763068244399,-699.71,0.00025056,2]
[393882172,1763068244413,-699.71,0.00025056,2]
[393882173,1763068244428,-699.71,0.00025056,2]
[393882174,1763068244443,-699.71,0.00025056,2]
[393882175,1763068244457,-699.71,0.00025056,2]
[393882176,1763068244472,-947.23,0.00025096,2]
[393882177,1763068244487,-480.24,0.00025096,2]
[393882178,1763068244502,-699.71,0.00025096,2]
[393882179,1763068244515,-1399.42,0.00025096,2]
[393882180,1763068244531,-1399.42,0.00025096,2]
[393882181,1763068244545,-699.71,0.00025096,2]
[393882182,1763068244560,-1399.42,0.00025096,2]
[393882183,1763068244575,-150.0,0.00025161,2]
[393882184,1763068244590,-1000.0,0.00025171,2]
[393882185,1763068244604,-575.0,0.00025247,2]
[393882186,1763068244620,-1317.0,0.00025247,2]
[393882187,1763068244634,-1598.0,0.00025274,2]
[393882188,1763068244649,-821.0,0.00025274,2]
[393882189,1763068244664,-813.0,0.00025274,2]
[393882190,1763068244679,-1275.0,0.00025274,2]
[393882191,1763068244693,-906.0,0.00025274,2]
[393882192,1763068244708,-1190.0,0.00025274,2]
[393882193,1763068244723,-2144.0,0.00025279,2]
[393882194,1763068244737,-6668.0,0.00025279,2]
[393882195,1763068244752,-560.0,0.00025279,2]
[393882196,1763068244766,-6484.0,0.00025279,2]
[393882197,1763068244781,-150.0,0.00025347,2]
[393882198,1763068244795,-150.0,0.00025347,2]
[393882199,1763068244814,-150.0,0.00025347,2]
[393882200,1763068244830,-150.0,0.00025347,2]
[393882201,1763068244846,-608.0,0.00025347,2]
[393882202,1763068244861,-2078.57856181,0.00025633,2]
[393882203,1763068244876,-500.0,0.00025699,2]
[393882204,1763068244892,-1765.80033356,0.00025897,2]
[393882205,1763068244907,-162.81933787,0.00025944,2]
[393882206,1763068244922,-354.4,0.0002598,2]
[393882207,1763068244937,-1093.24,0.0002598,2]
[393882208,1763068244952,-177.2,0.0002598,2]
[393882209,1763068244968,-187.26,0.0002598,2]
[393882210,1763068244981,-340.55,0.0002598,2]
[393882211,1763068244997,-314.65,0.0002598,2]
[393882212,1763068245010,-572.39,0.0002598,2]
[393882213,1763068245026,-150.0,0.0002598,2]
[393882214,1763068245157,-473.81,0.0002598,2]
[393882215,1763068245206,-549.92,0.0002598,2]
[393882216,1763068245215,-150.0,0.0002598,2]
[393882217,1763068245224,-177.2,0.0002598,2]
[393882218,1763068245234,-549.92,0.0002598,2]
[393882219,1763068245243,-1207.63,0.00025982,2]
[393882220,1763068245251,-557.02,0.00025982,2]
[393882221,1763068245260,-425.21,0.00025982,2]
[393882222,1763068245269,-1207.63,0.00025982,2]
[393882223,1763068245279,-177.2,0.00025982,2]
[393882224,1763068245288,-1203.89,0.00025982,2]
[393882225,1763068245298,-4138.65,0.00026,2]
[393882226,1763068245308,-214.02819568,0.00026,2]
[393882227,1763068245318,-161.10251134,0.00026,2]
[393882228,1763068245328,-21072.9093068,0.00026,2]
[393882229,1763068245338,-1613.0,0.00026481,2]
[393882230,1763068245347,-1613.0,0.00026481,2]
[393882231,1763068245356,-753.91,0.00026676,2]
[393882232,1763068245366,-156.43,0.00026715,7]
[393882233,1763068245378,-2184.19,0.000268,7]
[393882234,1763068245388,-176.76,0.00026802,2]
[393882235,1763068245399,-6453.0,0.00027096,2]
[393882236,1763068245410,-3643.87,0.00027123,2]
[393882237,1763068245420,-239.31867581,0.00027397,7]
[393882238,1763068245431,-300.0,0.00027397,2]
[393882239,1763068245441,-667.47,0.00027397,2]
[393882240,1763068245450,-2516.06,0.00027397,2]
[393882241,1763068245460,-525.94,0.00027397,2]
[393882242,1763068245469,-1500.0,0.00027397,16]
[393882243,1763068245478,-177.74,0.000274,7]
[393882244,1763068245487,-651.0,0.000274,7]
[393882245,1763068245496,-4038.94,0.000274,2]
[393882246,1763068245505,-700.49,0.00027626,2]
[393882247,1763068245515,-832.52,0.00027626,2]
[393882248,1763068245523,-224.35,0.00027657,2]
[393882249,1763068245533,-1765.80033356,0.00027682,2]
[393882250,1763068245542,-2155.59,0.00027691,2]
[393882251,1763068245551,-301.66,0.00027698,2]
[393882252,1763068245561,-169.32,0.00027698,2]
[393882253,1763068245570,-1207.63,0.00027698,2]
[393882254,1763068245579,-224.35,0.00028138,2]
[393882255,1763068245589,-150.0,0.00028219,2]
[393882256,1763068245598,-575.0,0.00028247,2]
[393882257,1763068245607,-1317.0,0.00028247,2]
[393882258,1763068245616,-1598.0,0.00028274,2]
[393882259,1763068245626,-821.0,0.00028274,2]
[393882260,1763068245635,-813.0,0.00028274,2]
[393882261,1763068245643,-1275.0,0.00028274,2]
[393882262,1763068245652,-906.0,0.00028274,2]
[393882263,1763068245662,-1190.0,0.00028274,2]
[393882264,1763068245671,-2144.0,0.00028279,2]
[393882265,1763068245680,-6668.0,0.00028279,2]
[393882266,1763068245689,-560.0,0.00028279,2]
[393882267,1763068245698,-6484.0,0.00028279,2]
[393882268,1763068245707,-150.0,0.00028347,2]
[393882269,1763068245716,-150.0,0.00028347,2]
[393882270,1763068245725,-150.0,0.00028347,2]
[393882271,1763068245734,-608.0,0.00028347,2]
[393882272,1763068245744,-1000.0,0.00028382,7]
[393882273,1763068245753,-416.38,0.00028446,2]
[393882274,1763068245763,-2184.19,0.000285,7]
[393882275,1763068245773,-225.92,0.0002852,2]
[393882276,1763068245782,-336.12,0.0002852,2]
[393882277,1763068245792,-549.92,0.0002852,2]
[393882278,1763068245802,-169.32,0.0002852,2]
[393882279,1763068245816,-2414.5,0.0002852,2]
[393882280,1763068245826,-549.92,0.0002852,2]
[393882281,1763068245836,-150.0,0.0002852,2]
[393882282,1763068245847,-173.84,0.0002852,2]
[393882283,1763068245857,-1099.84,0.0002852,2]
[393882284,1763068245866,-359.02,0.0002852,2]
[393882285,1763068245877,-4038.94,0.000288,2]
[393882286,1763068245891,-2258.0,0.00028922,2]
[393882287,1763068245900,-476.0,0.00028922,2]
[393882288,1763068245910,-745.06607761,0.00029,2]
[393882289,1763068245919,-478.69779641,0.00029,7]
[393882290,1763068245929,-540.9107369,0.00029002,2]